[Event "12th Tamil Nadu Circuit-IM 2024"]
[Site "Chennai"]
[Date "2024.01.13"]
[Round "8.2"]
[White "Prasannaa.s"]
[Black "Raghav V"]
[Result "0-1"]
[ECO "C69"]
[WhiteElo "2213"]
[BlackElo "2150"]
[Annotator "RC"]
[PlyCount "126"]
[EventDate "2024.01.09"]
[EventType "tourn"]
[EventCountry "IND"]
[SourceTitle "playchess.com"]
[Source "ChessBase"]
[SourceQuality "1"]
[TimeControl "5400+30"]

1. e4 {[%emt 0:00:46]} e5 {[%emt 0:00:13]} 2. Nf3 {[%emt 0:00:14]} Nc6 {[%emt 0:00:05]} 3. Bb5 {[%emt 0:00:04]} a6 {[%emt 0:00:03]} 4. Bxc6 {[%emt 0:00:04]} dxc6 {[%emt 0:00:04]} 5. O-O {[%emt 0:00:06]} f6 {[%emt 0:00:16]} 6. d4 {[%emt 0:00:13]} exd4 {[%emt 0:00:00]} 7. Nxd4 {[%emt 0:00:10]} c5 {[%emt 0:00:00]} 8. Nb3 {[%emt 0:00:07]} Qxd1 {[%emt 0:00:05]} 9. Rxd1 {[%emt 0:00:02]} Bg4 {[%emt 0:00:06]} 10. f3 {[%emt 0:00:05]} Be6 {[%emt 0:00:03]} 11. Nc3 {[%emt 0:00:23]} Bd6 {[%emt 0:02:46]} 12. Be3 {[%emt 0:05:44]} b6 {[%emt 0:00:41]} 13. a4 {[%emt 0:00:30]} O-O-O {[%emt 0:02:54]} 14. a5 {[%emt 0:01:44]} Kb7 {[%emt 0:03:02]} 15. axb6 {[%emt 0:04:59]} cxb6 {[%emt 0:00:05]} 16. e5 {[%emt 0:01:22]} Be7 {[%emt 0:25:36]} 17. Rxd8 {[%emt 0:04:27]} Bxd8 {[%emt 0:00:21]} 18. Bxc5 {[%emt 0:13:54]} Bxb3 {[%emt 0:02:52]} 19. Bf8 {[%emt 0:00:12]} Nh6 {[%emt 0:01:23]} 20. Bxg7 {[%emt 0:00:20]} Rg8 {[%emt 0:01:26]} 21. Bxh6 {[%emt 0:00:42]} Bxc2 {[%emt 0:00:39]} 22. Rc1 {[%emt 0:01:58]} Bb3 {[%emt 0:02:57]} 23. exf6 {[%emt 0:19:32]} Bxf6 {[%emt 0:02:31]} 24. Be3 {[%emt 0:00:07]} Rc8 {[%emt 0:14:29]} 25. Ne4 {[%emt 0:01:30]} Rxc1+ {[%emt 0:01:10]} 26. Bxc1 {[%emt 0:00:02]} Bd4+ {[%emt 0:01:47]} 27. Kf1 {[%emt 0:00:17]} Bc4+ {[%emt 0:03:31]} 28. Ke1 {[%emt 0:00:07]} Kc6 {[%emt 0:02:15]} 29. Kd2 {[%emt 0:01:56]} a5 {[%emt 0:07:06]} 30. Kc2 {[%emt 0:03:08]} a4 {[%emt 0:00:37]} 31. Bd2 {[%emt 0:03:08]} Bf1 {[%emt 0:05:12]} 32. g4 {[%emt 0:00:29]} Be2 {[%emt 0:01:29]} 33. Ng5 {[%emt 0:00:54]} Kd5 {[%emt 0:01:44]} 34. Bc3 {[%emt 0:01:13]} Be3 {[%emt 0:01:16]} 35. Nxh7 {[%emt 0:00:03]} Kc4 {[%emt 0:01:25]} 36. Nf6 {[%emt 0:17:17]} Bd3+ {[%emt 0:10:19]} 37. Kd1 {[%emt 0:00:03]} a3 {[%emt 0:02:21]} 38. bxa3 {[%emt 0:06:38]} Kxc3 {[%emt 0:00:04]} 39. Nd5+ {[%emt 0:00:05]} Kd4 {[%emt 0:00:04]} 40. Nxe3 {[%emt 0:00:05]} Kxe3 {[%emt 0:00:06]} 41. g5 {[%emt 0:00:03]} Kd4 {[%emt 0:01:52]} 42. Kd2 {[%emt 0:03:12]} Bg6 {[%emt 0:01:09]} 43. h4 {[%emt 0:08:08]} b5 {[%emt 0:00:03]} 44. f4 {[%emt 0:00:20]} Kc4 {[%emt 0:00:20]} 45. Ke3 {[%emt 0:01:35]} Kb3 {[%emt 0:00:24]} 46. Kf3 {[%emt 0:00:02]} Bh5+ {[%emt 0:02:36]} 47. Ke3 {[%emt 0:05:00]} Kxa3 {[%emt 0:00:19]} 48. f5 {[%emt 0:00:03]} b4 {[%emt 0:00:50]} 49. g6 {[%emt 0:00:02]} b3 {[%emt 0:00:49]} 50. Kf4 {[%emt 0:00:43]} b2 {[%emt 0:00:14]} 51. Kg5 {[%emt 0:00:03]} b1=Q {[%emt 0:00:40]} 52. Kxh5 {[%emt 0:00:02]} Qxf5+ {[%emt 0:00:07]} 53. Kh6 {[%emt 0:00:04]} Qf4+ {[%emt 0:00:07]} 54. Kh5 {[%emt 0:00:06]} Qe5+ {[%emt 0:01:50]} 55. Kh6 {[%emt 0:00:03]} Qh8+ {[%emt 0:00:11]} 56. Kg5 {[%emt 0:00:01]} Kb4 {[%emt 0:00:28]} 57. h5 {[%emt 0:00:02]} Kc5 {[%emt 0:00:12]} 58. h6 {[%emt 0:00:02]} Qe5+ {[%emt 0:00:22]} 59. Kg4 {[%emt 0:00:08]} Qf6 {[%emt 0:00:12]} 60. g7 {[%emt 0:00:03]} Qg6+ {[%emt 0:00:04]} 61. Kf3 {[%emt 0:00:12]} Kd6 {[%emt 0:00:08]} 62. Ke2 {[%emt 0:00:09]} Ke7 {[%emt 0:00:08]} 63. Kd1 {[%emt 0:00:04]} Ke8 {[%emt 0:00:09]} 0-1

[Event "12th Tamil Nadu Circuit-IM 2024"]
[Site "Chennai"]
[Date "2024.01.13"]
[Round "8.3"]
[White "Pradeep Kumar R A"]
[Black "Tologon tegin, Semetei"]
[Result "1/2-1/2"]
[ECO "A31"]
[WhiteElo "2189"]
[BlackElo "2384"]
[Annotator "RC"]
[PlyCount "133"]
[EventDate "2024.01.09"]
[EventType "tourn"]
[EventCountry "IND"]
[SourceTitle "playchess.com"]
[Source "ChessBase"]
[SourceQuality "1"]
[TimeControl "5400+30"]

1. Nf3 {[%emt 0:00:06]} c5 {[%emt 0:03:58]} 2. c4 {[%emt 0:01:53]} Nc6 {[%emt 0:00:14]} 3. d4 {[%emt 0:01:03]} cxd4 {[%emt 0:00:07]} 4. Nxd4 {[%emt 0:00:04]} Qb6 {[%emt 0:00:09]} 5. e3 {[%emt 0:02:58]} Nf6 {[%emt 0:03:29]} 6. Be2 {[%emt 0:02:15]} e6 {[%emt 0:00:11]} 7. O-O {[%emt 0:00:20]} Be7 {[%emt 0:00:38]} 8. Nc3 {[%emt 0:00:12]} a6 {[%emt 0:04:51]} 9. a3 {[%emt 0:01:36]} O-O {[%emt 0:17:04]} 10. b4 {[%emt 0:01:00]} d6 {[%emt 0:00:06]} 11. Bb2 {[%emt 0:03:01]} Bd7 {[%emt 0:00:09]} 12. Rc1 {[%emt 0:04:52]} Rac8 {[%emt 0:00:38]} 13. c5 {[%emt 0:04:17]} Qc7 {[%emt 0:06:11]} 14. Na4 {[%emt 0:08:49]} Nxd4 {[%emt 0:09:02]} 15. Bxd4 {[%emt 0:06:23]} Bxa4 {[%emt 0:04:37]} 16. Qxa4 {[%emt 0:00:06]} dxc5 {[%emt 0:00:03]} 17. Bxc5 {[%emt 0:03:47]} Ne4 {[%emt 0:01:18]} 18. Bxe7 {[%emt 0:08:05]} Qxe7 {[%emt 0:00:08]} 19. Rc2 {[%emt 0:03:58]} Nc3 {[%emt 0:14:22]} 20. Qb3 {[%emt 0:00:18]} Nxe2+ {[%emt 0:00:10]} 21. Rxe2 {[%emt 0:00:08]} Qc7 {[%emt 0:00:54]} 22. Rd2 {[%emt 0:04:29]} Qc3 {[%emt 0:00:31]} 23. Qxc3 {[%emt 0:02:05]} Rxc3 {[%emt 0:00:06]} 24. Rd7 {[%emt 0:00:09]} Rb8 {[%emt 0:01:01]} 25. Rfd1 {[%emt 0:01:34]} Kf8 {[%emt 0:00:33]} 26. R7d3 {[%emt 0:00:14]} Rbc8 {[%emt 0:01:32]} 27. Kf1 {[%emt 0:00:08]} Rxd3 {[%emt 0:00:41]} 28. Rxd3 {[%emt 0:00:02]} Ke7 {[%emt 0:00:23]} 29. Ke2 {[%emt 0:00:06]} Rc1 {[%emt 0:00:11]} 30. Rd1 {[%emt 0:01:01]} Rc3 {[%emt 0:09:16]} 31. Rd3 {[%emt 0:00:06]} Rc1 {[%emt 0:00:03]} 32. Rd1 {[%emt 0:00:05]} Rc4 {[%emt 0:00:02]} 33. Rd3 {[%emt 0:01:14]} g5 {[%emt 0:05:44]} 34. Kd2 {[%emt 0:01:32]} Rc6 {[%emt 0:07:40]} 35. Rc3 {[%emt 0:03:08]} Kd6 {[%emt 0:00:04]} 36. Rd3+ {[%emt 0:10:28]} Ke7 {[%emt 0:08:14]} 37. Rc3 {[%emt 0:04:24]} Rd6+ {[%emt 0:00:03]} 38. Rd3 {[%emt 0:00:17]} h5 {[%emt 0:01:07]} 39. Kc3 {[%emt 0:01:33]} Rc6+ {[%emt 0:00:13]} 40. Kd2 {[%emt 0:00:09]} f5 {[%emt 0:00:38]} 41. e4 {[%emt 0:06:01]} fxe4 {[%emt 0:01:57]} 42. Rd4 {[%emt 0:00:08]} e5 {[%emt 0:00:15]} 43. Rxe4 {[%emt 0:00:08]} Ke6 {[%emt 0:00:12]} 44. Re3 {[%emt 0:01:37]} Rd6+ {[%emt 0:01:33]} 45. Ke2 {[%emt 0:00:22]} Rc6 {[%emt 0:00:31]} 46. Kd2 {[%emt 0:00:09]} Rc4 {[%emt 0:00:10]} 47. Rd3 {[%emt 0:02:38]} Rh4 {[%emt 0:02:08]} 48. h3 {[%emt 0:00:12]} Rf4 {[%emt 0:00:03]} 49. Ke3 {[%emt 0:01:38]} Rc4 {[%emt 0:00:13]} 50. Rd8 {[%emt 0:06:59]} Rc3+ {[%emt 0:00:04]} 51. Ke4 {[%emt 0:00:05]} Rc4+ {[%emt 0:01:14]} 52. Ke3 {[%emt 0:00:01]} b5 {[%emt 0:01:15]} 53. Rh8 {[%emt 0:00:57]} Rc3+ {[%emt 0:00:12]} 54. Ke4 {[%emt 0:00:05]} Rc4+ {[%emt 0:00:16]} 55. Ke3 {[%emt 0:01:28]} Rc3+ {[%emt 0:00:02]} 56. Ke4 {[%emt 0:00:06]} Rc4+ {[%emt 0:00:02]} 57. Kd3 {[%emt 0:00:24]} e4+ {[%emt 0:00:04]} 58. Ke3 {[%emt 0:00:05]} h4 {[%emt 0:01:16]} 59. Rh6+ {[%emt 0:02:27]} Ke5 {[%emt 0:00:03]} 60. Rxa6 {[%emt 0:00:04]} Rc3+ {[%emt 0:00:04]} 61. Kd2 {[%emt 0:00:16]} Rd3+ {[%emt 0:00:19]} 62. Kc2 {[%emt 0:00:47]} Kd4 {[%emt 0:00:32]} 63. Rd6+ {[%emt 0:00:50]} Kc4 {[%emt 0:00:01]} 64. Rc6+ {[%emt 0:00:12]} Kd4 {[%emt 0:00:01]} 65. Rd6+ {[%emt 0:01:58]} Kc4 {[%emt 0:00:00]} 66. Re6 {[%emt 0:01:39]} Kd4 {[%emt 0:00:22]} 67. Rd6+ {[%emt 0:02:21]} 1/2-1/2

[Event "12th Tamil Nadu Circuit-IM 2024"]
[Site "Chennai"]
[Date "2024.01.13"]
[Round "8.4"]
[White "Mohamed Anees M"]
[Black "Gochelashvili, David"]
[Result "0-1"]
[ECO "A65"]
[WhiteElo "2319"]
[BlackElo "2287"]
[Annotator "RC"]
[PlyCount "78"]
[EventDate "2024.01.09"]
[EventType "tourn"]
[EventCountry "IND"]
[SourceTitle "playchess.com"]
[Source "ChessBase"]
[SourceQuality "1"]
[TimeControl "5400+30"]

1. d4 {[%emt 0:00:03]} Nf6 {[%emt 0:03:05]} 2. c4 {[%emt 0:00:10]} g6 {[%emt 0:00:11]} 3. Nc3 {[%emt 0:00:05]} Bg7 {[%emt 0:00:06]} 4. e4 {[%emt 0:00:06]} d6 {[%emt 0:00:08]} 5. h3 {[%emt 0:00:05]} O-O {[%emt 0:00:14]} 6. Bg5 {[%emt 0:00:04]} c5 {[%emt 0:00:49]} 7. d5 {[%emt 0:00:06]} e6 {[%emt 0:00:33]} 8. Bd3 {[%emt 0:00:07]} exd5 {[%emt 0:00:18]} 9. cxd5 {[%emt 0:00:06]} b5 {[%emt 0:00:23]} 10. Bxb5 {[%emt 0:07:54]} h6 {[%emt 0:01:35]} 11. Bd2 {[%emt 0:01:38]} Nbd7 {[%emt 0:01:40]} 12. Nge2 {[%emt 0:04:46]} Rb8 {[%emt 0:01:16]} 13. O-O {[%emt 0:05:05]} Nxe4 {[%emt 0:20:42]} 14. Nxe4 {[%emt 0:01:22]} Rxb5 {[%emt 0:00:07]} 15. Nxd6 {[%emt 0:03:08]} Rxb2 {[%emt 0:00:10]} 16. Bc3 {[%emt 0:01:32]} Bxc3 {[%emt 0:06:29]} 17. Nxc3 {[%emt 0:00:06]} Ba6 {[%emt 0:02:40]} 18. Re1 {[%emt 0:01:21]} Ne5 {[%emt 0:38:06]} 19. Rxe5 {[%emt 0:06:51]} Qxd6 {[%emt 0:00:02]} 20. Qe1 {[%emt 0:00:52]} Bd3 {[%emt 0:06:56]} 21. Qe3 {[%emt 0:05:38]} c4 {[%emt 0:00:01]} 22. Re1 {[%emt 0:00:24]} Qb6 {[%emt 0:05:50]} 23. Qf4 {[%emt 0:05:42]} g5 {[%emt 0:02:01]} 24. Qg3 {[%emt 0:04:42]} Qd4 {[%emt 0:02:46]} 25. Ne4 {[%emt 0:08:27]} c3 {[%emt 0:00:28]} 26. Nf6+ {[%emt 0:14:28]} Kg7 {[%emt 0:01:22]} 27. Nh5+ {[%emt 0:01:30]} Kh7 {[%emt 0:00:18]} 28. Nf6+ {[%emt 0:03:16]} Kg7 {[%emt 0:03:02]} 29. Qf3 {[%emt 0:06:20]} Bg6 {[%emt 0:01:30]} 30. Nd7 {[%emt 0:03:05]} Rh8 {[%emt 0:02:06]} 31. Qf6+ {[%emt 0:10:54]} Kh7 {[%emt 0:00:01]} 32. Re8 {[%emt 0:02:08]} Qxf6 {[%emt 0:00:27]} 33. Nxf6+ {[%emt 0:00:03]} Kg7 {[%emt 0:00:03]} 34. Rxh8 {[%emt 0:02:26]} Kxh8 {[%emt 0:00:04]} 35. d6 {[%emt 0:02:27]} Rd2 {[%emt 0:00:02]} 36. d7 {[%emt 0:00:34]} c2 {[%emt 0:00:22]} 37. Re8+ {[%emt 0:00:48]} Kg7 {[%emt 0:00:05]} 38. Rc8 {[%emt 0:00:03]} Kxf6 {[%emt 0:00:12]} 39. Rxc2 {[%emt 0:00:18]} Bxc2 {[%emt 0:00:05]} 0-1

[Event "12th Tamil Nadu Circuit-IM 2024"]
[Site "Chennai"]
[Date "2024.01.13"]
[Round "8.5"]
[White "Buscara, Sevan"]
[Black "Touzane, Olivier"]
[Result "1-0"]
[ECO "B04"]
[WhiteElo "2359"]
[BlackElo "2242"]
[Annotator "RC"]
[PlyCount "71"]
[EventDate "2024.01.09"]
[EventType "tourn"]
[EventCountry "IND"]
[SourceTitle "playchess.com"]
[Source "ChessBase"]
[SourceQuality "1"]
[TimeControl "5400+30"]

1. e4 {[%emt 1:09:28]} g6 {[%emt 0:01:10]} 2. d4 {[%emt 0:00:09]} Bg7 {[%emt 0:00:14]} 3. Nf3 {[%emt 0:00:50]} d6 {[%emt 0:00:16]} 4. Bc4 {[%emt 0:00:44]} Nf6 {[%emt 0:00:19]} 5. Qe2 {[%emt 0:00:18]} O-O {[%emt 0:00:24]} 6. e5 {[%emt 0:00:52]} dxe5 {[%emt 0:00:19]} 7. dxe5 {[%emt 0:00:11]} Nd5 {[%emt 0:00:12]} 8. h3 {[%emt 0:00:13]} c6 {[%emt 0:01:44]} 9. O-O {[%emt 0:02:30]} Qc7 {[%emt 0:00:16]} 10. Re1 {[%emt 0:01:34]} Rd8 {[%emt 0:01:06]} 11. a4 {[%emt 0:03:19]} a5 {[%emt 0:08:11]} 12. Nbd2 {[%emt 0:01:51]} Na6 {[%emt 0:01:56]} 13. Nb3 {[%emt 0:09:22]} Be6 {[%emt 0:11:02]} 14. Ng5 {[%emt 0:11:05]} Bf5 {[%emt 0:12:29]} 15. Bxa6 {[%emt 0:17:36]} bxa6 {[%emt 0:01:45]} 16. Nd4 {[%emt 0:01:49]} Qc8 {[%emt 0:01:52]} 17. Nxf5 {[%emt 0:04:25]} Qxf5 {[%emt 0:00:28]} 18. e6 {[%emt 0:00:46]} f6 {[%emt 0:05:40]} 19. Nf7 {[%emt 0:03:26]} Nb4 {[%emt 0:05:47]} 20. Nxd8 {[%emt 0:02:10]} Rxd8 {[%emt 0:00:37]} 21. Rd1 {[%emt 0:00:53]} Rxd1+ {[%emt 0:02:12]} 22. Qxd1 {[%emt 0:01:27]} Qxe6 {[%emt 0:00:30]} 23. Bd2 {[%emt 0:06:59]} f5 {[%emt 0:05:17]} 24. Bc3 {[%emt 0:00:31]} Bxc3 {[%emt 0:06:23]} 25. bxc3 Nd5 26. Qd2 {[%emt 0:03:01]} Qf6 {[%emt 0:09:33]} 27. Re1 {[%emt 0:03:56]} Nxc3 {[%emt 0:00:53]} 28. Qd8+ {[%emt 0:00:25]} Kf7 {[%emt 0:00:45]} 29. Qxa5 {[%emt 0:00:59]} Qd4 {[%emt 0:01:24]} 30. Qxa6 {[%emt 0:02:31]} Ne4 {[%emt 0:00:33]} 31. Qe2 {[%emt 0:01:27]} Qxa4 {[%emt 0:00:14]} 32. f3 {[%emt 0:02:50]} Qa7+ {[%emt 0:02:01]} 33. Qe3 {[%emt 0:01:37]} Qxe3+ {[%emt 0:00:33]} 34. Rxe3 {[%emt 0:00:04]} Ng3 {[%emt 0:00:13]} 35. Kf2 {[%emt 0:00:49]} f4 {[%emt 0:02:53]} 36. Rc3 {[%emt 0:00:07]} 1-0

[Event "12th Tamil Nadu Circuit-IM 2024"]
[Site "Chennai"]
[Date "2024.01.14"]
[Round "9.1"]
[White "Touzane, Olivier"]
[Black "Md Imran"]
[Result "0-1"]
[ECO "D31"]
[WhiteElo "2242"]
[BlackElo "2222"]
[Annotator "TA"]
[PlyCount "70"]
[EventDate "2024.01.09"]
[EventType "tourn"]
[EventCountry "IND"]
[SourceTitle "playchess.com"]
[Source "ChessBase"]
[SourceQuality "1"]
[TimeControl "5400+30"]

{[%evp 12,70,12,17,14,0,24,-4,16,-1,-4,1,0,-18,-23,-89,-81,-83,-87,-116,-100,-224,-225,-469,-471,-457,-468,-457,-322,-768,-767,-691,-689,-678,-634,-621,-614,-778,-515,-488,-500,-479,-404,-417,-383,-639,-283,-481,-504,-641,-630,-589,-487,-441,-397,-422,-407,-421,-328,-359,-367]} 1. d4 {[%emt 0:00:02]} d5 {[%emt 0:00:34]} 2. c4 {[%emt 0:00:08]} e6 {[%emt 0:00:05]} 3. Nc3 {[%emt 0:00:06]} c6 {[%emt 0:00:07][%cal Bc7c6,Bc6c5][%mdl 32]} 4. e4 {[%emt 0:01:14]} dxe4 {[%emt 0:00:02]} 5. Nxe4 {[%emt 0:00:20]} Bb4+ {[%emt 0:00:05]} 6. Nc3 {[%emt 0:01:45]} c5 {[%emt 0:00:01]} 7. Nf3 {[%emt 0:02:58]} Nf6 {[%emt 0:00:43][%cal Bg8f6,Bf6g4,Bg4f2][%mdl 32]} 8. a3 {[%emt 0:02:03]} Ba5 {[%emt 0:00:03]} 9. Be3 {[%emt 0:00:05]} Nc6 {[%emt 0:01:17] The position is equal.} 10. dxc5 {[%emt 0:00:51] Hoping for b4.} Bxc3+ {[%emt 0:00:56]} 11. bxc3 {[%emt 0:00:07]} Qa5 {[%emt 0:00:04][%cal Oe8g8]} 12. Qb3 {[%emt 0:01:27]} Ng4 {[%emt 0:00:37][%mdl 1024] Black has compensation.} 13. Bf4 {[%emt 0:02:09]} (13. Bg5 $11 {remains equal.}) 13... e5 $1 $17 {[%emt 0:03:14]} (13... Qxc5 $6 14. Bg3 $11) 14. Bg3 {[%emt 0:00:34]} e4 {[%emt 0:00:02] Prevents Bd3} (14... Qxc5 $6 15. Be2 $14) 15. Ng5 {[%emt 0:04:23][%cal Og3d6]} e3 {[%emt 0:00:26]} (15... Qxc5 16. Nxe4 Qe7 17. f3 $14) 16. f3 {[%emt 0:17:47] [#]} (16. fxe3 $17 O-O (16... Qxc5 17. Bf4 $15) (16... Nxe3 17. Bd6 $11) 17. Bd3) 16... Nf2 $1 $40 {[%emt 0:00:21][%mdl 128] Black goes for the king. Excellent horsemanship.} (16... Qxc5 $2 17. Ne4 Qb6 18. Nd6+ Ke7 19. Qxb6 axb6 20. fxg4 $18) 17. Rg1 $2 (17. Ne4 {was forced.} Nxh1 18. Nd6+ Ke7 (18... Kf8 19. Bf4 $17) 19. Bf4) 17... Qd8 {[%emt 0:01:15]} (17... Qxc5 18. Qb5 Qe7 19. Bxf2 exf2+ 20. Kxf2 $15) 18. Ra2 {[%emt 0:09:02] Wards off Qd2+} Qxg5 {[%emt 0:00:45]} 19. Bd6 {[%emt 0:00:13]} Ne5 {[%emt 0:06:32]} 20. Qb1 $2 {[%emt 0:09:45] [#]} (20. Qb5+ Nc6 (20... Bd7 $2 21. Qxb7 Rc8 22. Qd5 $19) 21. Rxf2 exf2+ 22. Kxf2) 20... Qh4 $1 {[%emt 0:05:15][%csl LRc4,LRh2]} 21. Ke2 {[%emt 0:01:35]} Nfd3 {[%emt 0:01:23]} (21... Nxc4 $2 22. g3 Qf6 (22... Qxh2 23. Rg2 $19) 23. Qb5+ Kd8 (23... Bd7 24. Qxc4 O-O-O 25. Rb2 $17) 24. Qxc4 $19) ({Not} 21... Qxh2 22. Qb5+ Bd7 23. c6 Bxc6 (23... Qxg1 $2 24. Qxe5+ Be6 25. cxb7 $18) 24. Qxe5+ Qxe5 25. Bxe5 $17) 22. g3 {[%emt 0:02:31]} Qxh2+ {[%emt 0:01:54]} 23. Rg2 {[%emt 0:01:42]} Qh5 {[%emt 0:00:03][%csl Ge5][%cal Rh5f3]} 24. Qb5+ {[%emt 0:00:11]} Bd7 {[%emt 0:01:33][%csl Ge5][%cal Rh5f3]} 25. Qxb7 {[%emt 0:00:07]} Rc8 {[%emt 0:01:11]} 26. Kxe3 {[%emt 0:01:08]} Nxc5 {[%emt 0:12:28]} 27. Qd5 {[%emt 0:00:39]} f6 {[%emt 0:01:15]} 28. Be2 $2 {[%emt 0:09:28] [#]} (28. Bxc5 $2 {is the wrong capture.} Rxc5 29. Qxc5 Qxf3+ 30. Kd2 Qxf1 $19) (28. g4 Qg5+ 29. Kf2) 28... Qf7 {[%emt 0:01:57]} 29. Qd4 $2 {[%emt 0:01:41]} (29. Bxc5 Qxd5 30. cxd5 Rxc5 31. Kd4) 29... Nb3 {[%emt 0:02:21][%csl LRc4,LRd4]} 30. Qxa7 {[%emt 0:00:42]} Qe6 {[%emt 0:00:16]} 31. Bxe5 {[%emt 0:02:06]} Qxe5+ {[%emt 0:00:01]} 32. Kf2 {[%emt 0:00:34]} Qxc3 {[%emt 0:00:02] ...Nc1 is the strong threat.} 33. Rg1 {[%emt 0:03:52]} Nc5 {[%emt 0:01:08]} 34. Rd1 {[%emt 0:00:26]} Qe5 {[%emt 0:01:18]} 35. Bf1 {[%emt 0:10:03] Strongly threatening Re2.} Qc7 {[%emt 0:00:42] White did not feel at home in the position after the opening.   Weighted Error Value: White=0.79/Black=0.53.  Mistake:       	White=6     	Black=1      Inaccurate:     	White=2     	---        OK:         	White=8     	Black=10     Strong:       	---       	Black=2} 0-1

[Event "12th Tamil Nadu Circuit-IM 2024"]
[Site "Chennai"]
[Date "2024.01.14"]
[Round "9.2"]
[White "Tologon tegin, Semetei"]
[Black "Buscara, Sevan"]
[Result "1-0"]
[ECO "B07"]
[WhiteElo "2384"]
[BlackElo "2359"]
[Annotator "RC"]
[PlyCount "87"]
[EventDate "2024.01.09"]
[EventType "tourn"]
[EventCountry "IND"]
[SourceTitle "playchess.com"]
[Source "ChessBase"]
[SourceQuality "1"]
[TimeControl "5400+30"]

1. d4 {[%emt 0:02:42]} g6 {[%emt 0:00:33]} 2. e4 {[%emt 0:02:31]} Bg7 {[%emt 0:00:09]} 3. Nf3 {[%emt 0:00:03]} d6 {[%emt 0:00:40]} 4. Bd3 {[%emt 0:01:24]} Nf6 {[%emt 0:00:53]} 5. O-O {[%emt 0:00:18]} O-O {[%emt 0:00:25]} 6. c3 {[%emt 0:00:23]} c5 {[%emt 0:00:49]} 7. dxc5 {[%emt 0:08:55]} dxc5 {[%emt 0:00:06]} 8. e5 {[%emt 0:01:21]} Ng4 {[%emt 0:02:47]} 9. Bf4 {[%emt 0:04:35]} Nc6 {[%emt 0:00:26]} 10. Re1 {[%emt 0:10:24]} c4 {[%emt 0:14:54]} 11. Bxc4 {[%emt 0:00:03]} Qxd1 {[%emt 0:00:07]} 12. Rxd1 {[%emt 0:00:02]} Ngxe5 {[%emt 0:00:30]} 13. Nxe5 {[%emt 0:00:09]} Nxe5 {[%emt 0:00:06]} 14. Bf1 {[%emt 0:04:46]} Be6 {[%emt 0:08:34]} 15. Na3 {[%emt 0:00:12]} Rad8 {[%emt 0:02:56]} 16. Nb5 {[%emt 0:15:33]} Rxd1 {[%emt 0:01:26]} 17. Rxd1 {[%emt 0:00:11]} a6 {[%emt 0:00:33]} 18. Nd4 {[%emt 0:01:02]} Bxa2 {[%emt 0:01:07]} 19. Re1 {[%emt 0:00:26]} Ng4 {[%emt 0:24:16]} 20. Rxe7 {[%emt 0:03:22]} Bxd4 {[%emt 0:03:22]} 21. cxd4 {[%emt 0:00:07]} Rd8 {[%emt 0:05:05]} 22. f3 {[%emt 0:03:04]} Rxd4 {[%emt 0:06:28]} 23. g3 {[%emt 0:22:44]} g5 {[%emt 0:00:09]} 24. Bxg5 {[%emt 0:00:39]} f6 {[%emt 0:00:11]} 25. fxg4 {[%emt 0:04:07]} fxg5 {[%emt 0:00:12]} 26. Rxb7 {[%emt 0:00:05]} a5 {[%emt 0:02:47]} 27. Rb5 {[%emt 0:00:06]} a4 {[%emt 0:03:38]} 28. Rxg5+ {[%emt 0:00:05]} Kh8 {[%emt 0:00:09]} 29. Rf5 {[%emt 0:02:07]} Rxg4 {[%emt 0:00:23]} 30. Rf4 {[%emt 0:00:02]} Rxf4 {[%emt 0:00:47]} 31. gxf4 {[%emt 0:00:06]} Kg7 {[%emt 0:00:11]} 32. Kf2 {[%emt 0:00:03]} Kf6 {[%emt 0:00:08]} 33. Bd3 {[%emt 0:00:09]} h6 {[%emt 0:00:56]} 34. Bc2 {[%emt 0:00:03]} Bb3 {[%emt 0:00:07]} 35. Bxb3 {[%emt 0:00:17]} axb3 {[%emt 0:00:03]} 36. Ke3 {[%emt 0:00:50]} Kf5 {[%emt 0:00:05]} 37. Kf3 {[%emt 0:00:03]} Kf6 {[%emt 0:00:12]} 38. Ke4 {[%emt 0:00:20]} Ke6 {[%emt 0:00:08]} 39. f5+ {[%emt 0:00:06]} Kf6 {[%emt 0:00:25]} 40. Kf4 {[%emt 0:00:03]} Kf7 {[%emt 0:00:23]} 41. Ke5 {[%emt 0:00:04]} Ke7 {[%emt 0:00:04]} 42. f6+ {[%emt 0:00:03]} Kf7 {[%emt 0:00:02]} 43. Kf5 {[%emt 0:00:03]} h5 {[%emt 0:00:26]} 44. h4 {[%emt 0:00:07]} 1-0